bitfinex-derivatives/quotes_BTCF0:USTF0_20250309
["timestamp","ask_amount","ask_price","bid_price","bid_amount"]
[1741484164571,0.08190336,86224.0,86223.0,0.13453903]
[1741484164974,0.1101962,86232.0,86226.0,0.0695971]
[1741484164975,0.0347962,86232.0,86226.0,0.0695971]
[1741484165175,0.1043921,86231.0,86230.0,0.0695938]
[1741484165784,0.1166109,86231.0,86230.0,0.0695938]
[1741484167785,0.1466109,86231.0,86230.0,0.0695938]
[1741484168485,0.0695954,86228.0,86227.0,0.0632]
[1741484168690,0.0695954,86228.0,86227.0,0.0314]
[1741484168991,0.4303954,86228.0,86227.0,0.0314]
[1741484169387,0.4626954,86228.0,86227.0,0.0314]
[1741484169889,0.0695987,86224.0,86223.0,0.00173953]
[1741484170992,0.1018987,86224.0,86223.0,0.00173953]
[1741484173193,0.1018987,86224.0,86223.0,0.03503953]
[1741484181295,0.1018987,86224.0,86223.0,0.00173953]
[1741484183192,0.3931,86224.0,86215.0,0.0316]
[1741484183387,0.3608,86216.0,86200.0,0.1]
[1741484183593,0.0696164,86202.0,86201.0,0.0656]
[1741484184098,0.08189547,86202.0,86201.0,0.0656]
[1741484185597,0.08189547,86202.0,86201.0,0.0324]
[1741484185993,0.08189547,86202.0,86201.0,0.1352172]
[1741484186392,0.08189547,86202.0,86201.0,0.0656]
[1741484186588,0.08189547,86202.0,86201.0,0.1352172]
[1741484186795,0.01227907,86202.0,86201.0,0.1352172]
[1741484186990,0.0696164,86202.0,86201.0,0.2729423]
[1741484187301,0.0696164,86202.0,86201.0,0.2033251]
[1741484187502,0.0696164,86202.0,86201.0,0.1700251]
[1741484187802,0.08187008,86202.0,86201.0,0.1352172]
[1741484188395,0.08187008,86202.0,86201.0,0.1020172]
[1741484189000,0.08187008,86202.0,86201.0,0.0324]
[1741484189797,0.08187008,86202.0,86201.0,0.1020172]
[1741484189987,0.08187008,86202.0,86201.0,0.1339172]
[1741484190194,0.08187008,86202.0,86201.0,0.4947172]
[1741484190402,0.08187008,86202.0,86201.0,0.1339172]
[1741484191002,0.08187008,86202.0,86201.0,0.1020172]
[1741484191204,0.08187008,86202.0,86201.0,0.1339172]
[1741484191404,0.01225368,86202.0,86201.0,0.1339172]
[1741484191703,0.101914,86205.0,86204.0,0.0696148]
[1741484192398,0.11388863,86205.0,86204.0,0.0696148]
[1741484193701,0.11388863,86205.0,86202.0,0.0657079]
[1741484193702,0.11388863,86205.0,86202.0,0.0309]
[1741484193905,0.0696172,86201.0,86200.0,0.2044239]
[1741484195507,0.06952981,86201.0,86200.0,0.2044239]
[1741484195709,0.10182981,86201.0,86200.0,0.2044239]
[1741484196202,0.10182981,86201.0,86200.0,0.1348083]
[1741484197110,0.10182981,86201.0,86200.0,0.1]
[1741484197410,0.10182981,86201.0,86200.0,0.169618]
[1741484205312,0.10182981,86201.0,86200.0,0.232918]
[1741484206711,0.10182981,86201.0,86200.0,0.132]
[1741484206916,0.10182981,86201.0,86200.0,0.201618]
[1741484209816,0.10182981,86201.0,86200.0,0.1]
[1741484212517,0.10182981,86201.0,86200.0,0.169618]
[1741484212717,0.10623962,86201.0,86200.0,0.169618]
[1741484214123,0.10182981,86201.0,86200.0,0.169618]
[1741484215216,0.10182981,86201.0,86200.0,0.1]
[1741484216117,0.10182981,86201.0,86200.0,0.1313]
[1741484216311,0.10182981,86201.0,86200.0,0.1]
[1741484217418,0.13282981,86201.0,86200.0,0.1]
[1741484219517,0.13282981,86201.0,86200.0,0.169618]
[1741484221624,0.13282981,86201.0,86200.0,0.1]
[1741484221924,0.031,86201.0,86200.0,0.169618]
[1741484222127,0.13782124,86202.0,86201.0,0.0696172]
[1741484222325,0.20743764,86202.0,86201.0,0.1009172]
[1741484222530,0.20743764,86202.0,86201.0,0.1315172]
[1741484224328,0.13782124,86202.0,86201.0,0.1315172]
[1741484225631,0.0696133,86206.0,86201.0,0.0619]
[1741484225632,0.20743454,86206.0,86201.0,0.0619]
[1741484225931,0.20743454,86206.0,86205.0,0.069614]
[1741484226534,0.069614,86205.0,86204.0,0.0634]
[1741484226734,0.163714,86205.0,86204.0,0.0634]
[1741484227035,0.163714,86205.0,86204.0,0.1330148]
[1741484230030,0.163714,86205.0,86204.0,0.031]
[1741484230330,0.0696172,86201.0,86200.0,0.2044267]
[1741484230530,0.0696172,86201.0,86200.0,0.2371267]
[1741484230726,0.0696172,86201.0,86200.0,0.2688267]
[1741484231141,0.1025172,86201.0,86200.0,0.2688267]
[1741484232141,0.1025172,86201.0,86200.0,0.1]
[1741484240934,0.1025172,86201.0,86200.0,0.169618]
[1741484241235,0.0322,86202.0,86201.0,0.0696172]
[1741484241439,0.0322,86202.0,86201.0,0.1314172]
[1741484241440,0.1018164,86202.0,86201.0,0.1314172]
[1741484241640,0.0696164,86202.0,86201.0,0.1314172]
[1741484242336,0.18529399,86206.0,86205.0,0.069614]
[1741484242540,0.25490719,86206.0,86205.0,0.069614]
[1741484242932,0.2429191,86206.0,86205.0,0.100614]
[1741484243134,0.1733059,86206.0,86205.0,0.100614]
[1741484245245,0.03,86207.0,86205.0,0.100614]
[1741484245548,0.03,86207.0,86206.0,0.0696132]
[1741484245844,0.03,86207.0,86206.0,0.1029132]
[1741484246045,0.03,86207.0,86206.0,0.1359132]
[1741484246939,0.0996124,86207.0,86206.0,0.1359132]
[1741484247139,0.1322124,86207.0,86206.0,0.1359132]
[1741484248342,0.0626,86207.0,86206.0,0.1359132]
[1741484248647,0.10371926,86208.0,86207.0,0.0696124]
[1741484248843,0.10371926,86208.0,86207.0,0.1302124]
[1741484254958,0.10371926,86210.0,86209.0,0.0696108]
[1741484256451,0.10371926,86210.0,86209.0,0.08153732]
[1741484256949,0.10371926,86210.0,86209.0,0.2196108]
[1741484257147,0.10371926,86210.0,86209.0,0.5804108]
[1741484257646,0.10371926,86210.0,86209.0,0.6152926]
[1741484257852,0.10371926,86210.0,86209.0,0.94366487]
[1741484258445,0.00017391,86217.0,86209.0,0.87405407]
[1741484258646,0.00017391,86217.0,86216.0,0.4304051]
[1741484258843,0.00017391,86217.0,86216.0,0.46523617]
[1741484259044,0.10388659,86217.0,86216.0,0.61523617]
[1741484260347,0.10388659,86217.0,86216.0,0.5804051]
[1741484262247,0.10388659,86217.0,86216.0,0.8967051]
[1741484262649,0.23924898,86231.0,86216.0,1.10551354]
[1741484262650,0.0314,86231.0,86216.0,1.10551354]
[1741484262953,0.0308,86230.0,86229.0,0.0695946]
[1741484263153,0.0308,86230.0,86229.0,0.4303946]
[1741484264456,0.1003938,86230.0,86229.0,0.4303946]
[1741484266852,0.1003938,86230.0,86229.0,0.0695946]
[1741484267060,0.1003938,86230.0,86229.0,0.4303946]
[1741484276968,0.0308,86230.0,86229.0,0.4303946]
[1741484277870,0.0619,86230.0,86229.0,0.0695946]
[1741484278367,0.0619,86230.0,86229.0,0.1014946]
[1741484278768,0.0311,86230.0,86229.0,0.1014946]
[1741484279966,0.0311,86230.0,86229.0,0.4177946]
[1741484280159,0.0311,86230.0,86229.0,0.42984151]
[1741484282065,0.0311,86230.0,86229.0,0.50556151]
[1741484282266,0.0302,86236.0,86229.0,0.50556151]
[1741484282573,0.00017391,86238.0,86237.0,0.0695882]
[1741484283476,0.00017391,86238.0,86237.0,0.1318882]
[1741484285878,0.00017391,86238.0,86237.0,0.4481882]
[1741484289079,0.00017391,86238.0,86237.0,0.45670122]
[1741484289685,0.09447391,86238.0,86237.0,0.45670122]
[1741484290276,0.09447391,86238.0,86237.0,0.39440122]
[1741484290472,0.16406131,86238.0,86237.0,0.39440122]
[1741484291884,0.16406131,86238.0,86237.0,0.07810122]
[1741484292281,0.16406131,86238.0,86237.0,0.00851302]
[1741484292485,0.09447391,86238.0,86236.0,0.35421354]
[1741484292674,0.0695882,86237.0,86236.0,0.42380174]
[1741484293078,0.1320882,86237.0,86236.0,0.42380174]
[1741484293474,0.1320882,86237.0,86236.0,0.34800174]
[1741484293881,0.1320882,86237.0,86236.0,0.0695882]
[1741484294675,0.1320882,86237.0,86236.0,0.07846271]
[1741484296079,0.1320882,86237.0,86236.0,0.00887451]
[1741484296283,0.069589,86236.0,86235.0,0.0695897]
[1741484296681,0.132189,86236.0,86235.0,0.0695897]
[1741484297188,0.132189,86236.0,86231.0,0.20833995]
[1741484297380,0.0695922,86232.0,86231.0,0.21704825]
[1741484297583,0.0695922,86232.0,86231.0,0.0783013]
[1741484298481,0.1321922,86232.0,86231.0,0.0783013]
[1741484303181,0.0626,86232.0,86231.0,0.0783013]
[1741484303693,0.1321922,86232.0,86231.0,0.1426013]
[1741484303988,0.0626,86232.0,86231.0,0.1426013]
[1741484304181,0.1321922,86232.0,86231.0,0.1426013]
[1741484307787,0.1321922,86232.0,86231.0,0.0087083]
[1741484307981,0.069593,86231.0,86230.0,0.069593]
[1741484308382,0.133993,86231.0,86230.0,0.101093]
[1741484308589,0.133993,86231.0,86230.0,0.134193]
[1741484309478,0.0644,86231.0,86230.0,0.134193]
[1741484309683,0.133993,86231.0,86230.0,0.134193]
[1741484310684,0.14618422,86231.0,86230.0,0.134193]
[1741484313693,0.15018422,86231.0,86230.0,0.134193]
[1741484317484,0.08059122,86231.0,86230.0,0.134193]
[1741484317994,0.0372,86231.0,86230.0,0.134193]
[1741484327193,0.0372,86231.0,86230.0,0.34253295]
[1741484328187,0.004,86231.0,86230.0,0.34253295]
[1741484331502,0.073593,86231.0,86230.0,0.34253295]
[1741484335095,0.073593,86231.0,86230.0,0.134193]
[1741484339003,0.073593,86231.0,86230.0,0.069593]
[1741484340300,0.073593,86231.0,86230.0,0.102193]
[1741484340501,0.073593,86231.0,86230.0,0.069593]
[1741484341708,0.073593,86231.0,86230.0,0.101693]
[1741484342209,0.073593,86231.0,86230.0,0.069593]
[1741484342502,0.004,86231.0,86229.0,0.21724894]
[1741484342708,0.1331938,86230.0,86229.0,0.28684354]
[1741484343206,0.1331938,86230.0,86229.0,0.21724894]
[1741484343702,0.1331938,86230.0,86229.0,0.20851386]
[1741484344607,0.1331938,86230.0,86229.0,0.00017391]
[1741484345808,0.1381938,86230.0,86229.0,0.00017391]
[1741484347312,0.2881938,86230.0,86229.0,0.00017391]
[1741484348914,0.1381938,86230.0,86229.0,0.00017391]
[1741484349313,0.40245253,86230.0,86229.0,0.00017391]
[1741484349514,0.40345253,86230.0,86229.0,0.00117391]
[1741484351114,0.40445253,86230.0,86229.0,0.00017391]
[1741484351314,0.76525253,86230.0,86229.0,0.00017391]
[1741484351512,0.69565873,86230.0,86209.0,0.00173981]
[1741484351701,0.1044145,86213.0,86212.0,0.0696077]
[1741484352306,0.1044145,86213.0,86212.0,0.0616077]
[1741484356125,0.1044145,86213.0,86212.0,0.00867953]
[1741484356313,0.0348045,86213.0,86210.0,0.0635]
[1741484356621,0.06961,86210.0,86209.0,0.01033316]
[1741484358121,0.42558,86212.0,86190.0,0.34814456]
[1741484358318,0.42558,86212.0,86196.0,0.0322]
[1741484358319,0.3608,86201.0,86196.0,0.0322]
[1741484358617,0.4304172,86201.0,86196.0,0.0629]
[1741484359427,0.4922172,86201.0,86193.0,0.0307]
[1741484359820,0.4922172,86201.0,86196.0,0.00849499]
[1741484361524,0.4922172,86201.0,86197.0,0.0302]
[1741484362027,0.4922172,86201.0,86197.0,0.0609]
[1741484362723,0.4922172,86201.0,86198.0,0.0696193]
[1741484364020,0.4922172,86201.0,86183.0,0.0348158]
[1741484364021,0.1392651,86184.0,86183.0,0.0348158]
[1741484365518,0.15099604,86184.0,86183.0,0.0348158]
[1741484365725,0.15099604,86184.0,86183.0,0.0675158]
[1741484369726,0.08136264,86184.0,86183.0,0.0675158]
[1741484376230,0.04654644,86184.0,86183.0,0.0675158]
[1741484378426,0.06979862,86192.0,86191.0,0.0696253]
[1741484380440,0.06979862,86192.0,86191.0,0.1330253]
[1741484380826,0.08173194,86192.0,86191.0,0.1330253]
[1741484383833,0.08173194,86192.0,86191.0,0.0634]
[1741484384042,0.0696318,86183.0,86175.0,0.3608]
[1741484384244,0.0696318,86183.0,86182.0,0.4304312]
[1741484385439,0.1020318,86183.0,86182.0,0.4616312]
[1741484389148,0.10661368,86183.0,86182.0,0.4616312]
[1741484390150,0.10661368,86183.0,86182.0,0.0312]
[1741484390350,0.0696358,86178.0,86177.0,0.20833995]
[1741484390649,0.0696358,86178.0,86177.0,0.27797655]
[1741484391152,0.07421768,86178.0,86177.0,0.20833995]
[1741484391846,0.10601768,86178.0,86177.0,0.24073995]
[1741484392246,0.10601768,86178.0,86177.0,0.24934123]
[1741484392447,0.10601768,86178.0,86177.0,0.31897783]
[1741484392852,0.10601768,86178.0,86177.0,0.11063788]
[1741484393050,0.10601768,86178.0,86177.0,0.04100128]
[1741484393253,0.1346358,86178.0,86177.0,0.04100128]
[1741484393450,0.1346358,86178.0,86177.0,0.07350128]
[1741484393651,0.0696374,86176.0,86175.0,0.60267995]
[1741484393851,0.0696374,86176.0,86175.0,0.56913995]
[1741484394151,0.0696374,86176.0,86175.0,0.63877815]
[1741484394849,0.0696374,86176.0,86175.0,0.67127815]
[1741484395149,0.0696374,86176.0,86175.0,0.70327815]
[1741484395352,0.0696374,86176.0,86175.0,0.71206839]
[1741484397055,0.0696374,86176.0,86175.0,0.50372844]
[1741484397056,0.17316773,86176.0,86175.0,0.50372844]
[1741484401258,0.17760791,86176.0,86175.0,0.50372844]
[1741484402549,0.07407758,86176.0,86175.0,0.50372844]
[1741484404360,0.0696374,86176.0,86175.0,0.50372844]
[1741484407362,0.16853033,86178.0,86177.0,0.0696366]
[1741484407553,0.10353033,86178.0,86177.0,0.0696366]
[1741484410359,0.10353033,86178.0,86177.0,0.1311366]
[1741484410560,0.10353033,86181.0,86180.0,0.0696342]
[1741484411263,0.10353033,86181.0,86180.0,0.1001342]
[1741484413466,0.16433033,86181.0,86180.0,0.1001342]
[1741484414254,0.16433033,86181.0,86180.0,0.11181539]
[1741484414457,0.13433033,86181.0,86180.0,0.11181539]
[1741484414657,0.10353033,86181.0,86180.0,0.11181539]
[1741484414968,0.10353033,86185.0,86184.0,0.069631]
[1741484415268,0.10353033,86185.0,86184.0,0.430431]
[1741484415965,0.10353033,86185.0,86184.0,0.528731]
[1741484417962,0.16683033,86185.0,86184.0,0.528731]
[1741484419376,0.0633,86185.0,86184.0,0.528731]
[1741484421066,0.1329302,86185.0,86184.0,0.528731]
[1741484421371,0.1648302,86185.0,86184.0,0.528731]
[1741484424166,0.1648302,86185.0,86184.0,0.495631]
[1741484427469,0.1648302,86185.0,86184.0,0.134831]
[1741484427673,0.1648302,86185.0,86184.0,0.495631]
[1741484428872,0.1648302,86185.0,86184.0,0.134831]
[1741484436284,0.1648302,86185.0,86184.0,0.069631]
[1741484437983,0.1648302,86185.0,86184.0,0.102831]
[1741484439675,0.0952,86185.0,86184.0,0.102831]
[1741484440381,0.1648302,86185.0,86184.0,0.102831]
[1741484443384,0.1648302,86185.0,86184.0,0.136031]
[1741484446796,0.26836053,86185.0,86184.0,0.136031]
[1741484448704,0.26836053,86185.0,86184.0,0.102831]
[1741484449789,0.27279117,86185.0,86184.0,0.102831]
[1741484450494,0.16926084,86185.0,86184.0,0.102831]
[1741484453195,0.16926084,86185.0,86184.0,0.069631]
[1741484453790,0.16926084,86185.0,86184.0,0.132831]
[1741484457105,0.1648302,86185.0,86184.0,0.132831]
[1741484462206,0.0952,86185.0,86184.0,0.132831]
[1741484463414,0.1018302,86185.0,86184.0,0.132831]
[1741484465609,0.2056362,86185.0,86184.0,0.34117095]
[1741484467819,0.2056362,86185.0,86184.0,0.30817095]
[1741484471316,0.136006,86185.0,86184.0,0.30817095]
[1741484471614,0.0322,86185.0,86184.0,0.30817095]
[1741484474719,0.20780603,86188.0,86184.0,0.23853995]
[1741484474921,0.0315,86187.0,86186.0,0.0696294]
[1741484475413,0.0638,86187.0,86186.0,0.0696294]
[1741484475722,0.10380205,86189.0,86185.0,0.0348147]
[1741484475911,0.10380205,86189.0,86188.0,0.4304277]
[1741484476314,0.13817813,86193.0,86191.0,0.0696253]
[1741484477813,0.13817813,86193.0,86191.0,0.10451643]
[1741484479127,0.13817813,86194.0,86191.0,0.10451643]
[1741484479316,0.17272266,86200.0,86191.0,0.03489113]
[1741484479515,0.17272266,86200.0,86199.0,0.4304189]
[1741484479716,0.17272266,86200.0,86199.0,0.5062189]
[1741484481423,0.17272266,86200.0,86199.0,0.5392189]
[1741484482020,0.17272266,86200.0,86199.0,0.8555189]
[1741484482911,0.00017402,86208.0,86204.0,0.0696148]
[1741484483111,0.00017402,86208.0,86204.0,0.3859148]
[1741484483321,0.00017402,86208.0,86207.0,0.4304124]
[1741484485627,0.00017402,86208.0,86207.0,0.7912124]
[1741484488016,0.00017402,86208.0,86207.0,1.1075124]
[1741484490727,0.00017402,86208.0,86207.0,0.3859124]
[1741484490929,0.00017402,86208.0,86207.0,1.1075124]
[1741484493126,0.00017402,86208.0,86207.0,1.1398124]
[1741484496235,0.00017402,86208.0,86207.0,1.34759027]
[1741484499535,0.00017402,86208.0,86207.0,1.37859027]
[1741484500239,0.00017402,86208.0,86207.0,1.34759027]
[1741484501631,0.00017402,86208.0,86207.0,0.62599027]
[1741484502034,0.00017402,86208.0,86207.0,1.34759027]
[1741484502831,0.0321,86214.0,86207.0,1.27797787]
[1741484503037,0.09153892,86250.0,86238.0,0.0695858]
[1741484503038,0.104385,86239.0,86238.0,0.0695858]
[1741484503338,0.0347923,86242.0,86234.0,0.0347952]
[1741484503539,0.1043842,86237.0,86236.0,0.0695885]
[1741484503740,0.1043842,86237.0,86234.0,0.0347952]
[1741484503741,0.0695898,86235.0,86234.0,0.1043854]
[1741484506646,0.1357898,86235.0,86234.0,0.1043854]
[1741484509542,0.1357898,86235.0,86234.0,0.11287394]
[1741484510944,0.14030596,86235.0,86234.0,0.11287394]
[1741484519251,0.14030596,86235.0,86234.0,0.14387394]
[1741484523953,0.14030596,86235.0,86234.0,0.11287394]
[1741484531564,0.13930596,86235.0,86234.0,0.11287394]
[1741484532348,0.14430596,86235.0,86234.0,0.11287394]
[1741484532750,0.07571616,86235.0,86234.0,0.11287394]
[1741484534759,0.07071616,86235.0,86234.0,0.11287394]
[1741484535058,0.07571616,86235.0,86234.0,0.11287394]
[1741484536055,0.00951616,86235.0,86234.0,0.32118789]
[1741484536554,0.005,86235.0,86234.0,0.32118789]
[1741484538864,0.005,86235.0,86234.0,0.39128748]
[1741484540962,0.00017402,86243.0,86242.0,0.0695841]
[1741484541759,0.01176374,86249.0,86247.0,0.0695801]
[1741484542558,0.01176374,86249.0,86247.0,0.1338801]
[1741484543154,0.1798891,86248.0,86247.0,0.1348801]
[1741484544368,0.007,86248.0,86247.0,0.1348801]
[1741484545460,0.007,86248.0,86247.0,0.14639634]
[1741484546865,0.0373,86248.0,86247.0,0.14639634]
[1741484548870,0.007,86248.0,86247.0,0.14639634]
[1741484553067,0.0718,86248.0,86247.0,0.14639634]
[1741484554973,0.0718,86248.0,86247.0,0.50719634]
[1741484557467,0.06974712,86256.0,86255.0,0.0695737]
[1741484557767,0.10134712,86256.0,86255.0,0.0695737]
[1741484558576,0.11331164,86256.0,86255.0,0.0998737]
[1741484558869,0.14911164,86256.0,86255.0,0.1317737]
[1741484559567,0.07953854,86256.0,86255.0,0.1317737]
[1741484559770,0.14911134,86256.0,86255.0,0.1317737]
[1741484562366,0.07953854,86256.0,86255.0,0.1317737]
[1741484562668,0.14911134,86256.0,86255.0,0.1317737]
[1741484577183,0.07953854,86256.0,86254.0,0.209708]
[1741484577497,0.07953854,86256.0,86251.0,0.27841354]
[1741484577498,0.0695737,86255.0,86251.0,0.27841354]
[1741484577676,0.0695761,86252.0,86251.0,0.27841354]
[1741484580387,0.0695761,86252.0,86247.0,0.00017391]
[1741484580586,0.0695793,86248.0,86247.0,0.00017391]
[1741484581379,0.1332793,86248.0,86247.0,0.00017391]
[1741484587508,0.1332793,86248.0,86247.0,0.06197391]
[1741484588183,0.1332793,86248.0,86247.0,0.13155401]
[1741484588687,0.17028148,86251.0,86247.0,0.13155401]
[1741484588688,0.13828148,86251.0,86247.0,0.06197391]
[1741484588885,0.20785868,86251.0,86250.0,0.0695777]
[1741484590294,0.23955868,86251.0,86250.0,0.1019777]
[1741484590484,0.27155868,86251.0,86250.0,0.1019777]
[1741484591492,0.23955868,86251.0,86250.0,0.1019777]
[1741484592494,0.1012772,86251.0,86250.0,0.1019777]
[1741484600600,0.1012772,86251.0,86250.0,0.0324]
[1741484601098,0.1654772,86251.0,86250.0,0.1019777]
[1741484601898,0.1654772,86251.0,86250.0,0.0324]
[1741484604000,0.26921261,86251.0,86250.0,0.0324]
[1741484607499,0.1654772,86251.0,86250.0,0.0324]
[1741484611206,0.1654772,86251.0,86250.0,0.1019777]
[1741484611800,0.1654772,86251.0,86250.0,0.0324]
[1741484621508,0.1654772,86251.0,86250.0,0.1019777]
[1741484622907,0.5343291,86254.0,86253.0,0.0695753]
[1741484623102,0.1728891,86254.0,86253.0,0.0695753]
[1741484623508,0.1728891,86254.0,86253.0,0.1657753]
[1741484626904,0.00017402,86256.0,86255.0,0.0695737]
[1741484629511,0.00017402,86256.0,86255.0,0.0725737]
[1741484632622,0.00017402,86256.0,86255.0,0.1361737]
[1741484633122,0.00017402,86256.0,86255.0,0.8577737]
[1741484633821,0.00017402,86256.0,86255.0,0.8567737]
[1741484635123,0.00017402,86256.0,86255.0,0.8577737]
[1741484637221,0.00017402,86256.0,86255.0,0.8547737]
[1741484637421,0.00017402,86256.0,86255.0,0.8577737]
[1741484638321,0.00017402,86256.0,86255.0,0.8567737]
[1741484641429,0.00017402,86256.0,86255.0,0.8547737]
[1741484641630,0.00017402,86256.0,86255.0,0.8567737]
[1741484643446,0.00017402,86256.0,86255.0,0.8577737]
[1741484648143,0.00017402,86256.0,86255.0,0.8547737]
[1741484648345,0.00017402,86256.0,86255.0,0.8567737]
[1741484650540,0.00017402,86256.0,86255.0,0.4959737]
[1741484655453,0.00017402,86256.0,86255.0,0.53069083]
[1741484656145,0.00017402,86256.0,86255.0,0.53169083]
[1741484656654,0.00017402,86256.0,86255.0,0.4969737]
[1741484660256,0.00017402,86256.0,86255.0,0.4979737]
[1741484661244,0.00017402,86256.0,86255.0,0.53287023]
[1741484661659,0.00017402,86256.0,86255.0,0.85863108]
[1741484662358,0.10384555,86266.0,86264.0,0.0695664]
[1741484662652,0.10384555,86266.0,86265.0,0.8732652]
[1741484666159,0.0649,86269.0,86268.0,0.0695632]
[1741484666356,0.0649,86269.0,86268.0,0.1444432]
[1741484666956,0.0649,86269.0,86268.0,0.2098432]
[1741484670561,0.0649,86269.0,86268.0,0.1444432]
[1741484671367,0.0649,86269.0,86268.0,0.1766432]
[1741484673469,0.0649,86269.0,86268.0,0.38494886]
[1741484680168,0.0649,86269.0,86268.0,0.74574886]
[1741484680966,0.0649,86269.0,86268.0,0.63866886]
[1741484681269,0.1344624,86269.0,86268.0,0.63866886]
[1741484684665,0.1344624,86269.0,86268.0,0.27786886]
[1741484685467,0.1344624,86269.0,86268.0,0.0695632]
[1741484688170,0.13896242,86269.0,86268.0,0.0695632]
[1741484695177,0.13896242,86269.0,86268.0,0.1010632]
[1741484695375,0.13896242,86269.0,86268.0,0.1342632]
[1741484702186,0.24280797,86269.0,86268.0,0.1342632]
[1741484702883,0.17324557,86269.0,86268.0,0.1342632]
[1741484703187,0.24280797,86269.0,86268.0,0.1342632]
[1741484706491,0.24280797,86269.0,86268.0,0.1659632]
[1741484707883,0.23830795,86269.0,86268.0,0.1659632]
[1741484709984,0.20610795,86269.0,86268.0,0.1659632]
[1741484713681,0.10384555,86269.0,86268.0,0.1659632]
[1741484716188,0.17340795,86269.0,86268.0,0.1659632]
[1741484717787,0.0695624,86269.0,86268.0,0.1659632]
[1741484719087,0.0347805,86271.0,86270.0,0.0695616]
[1741484719288,0.0347805,86271.0,86270.0,0.4303616]
[1741484719895,0.0996599,86273.0,86272.0,0.0695599]
[1741484720388,0.1318599,86273.0,86272.0,0.0695599]
[1741484720587,0.1318599,86273.0,86272.0,0.1356599]
[1741484721085,0.06973251,86274.0,86273.0,0.0695591]
[1741484721299,0.00017391,86274.0,86273.0,0.1356591]
[1741484721796,0.00458544,86274.0,86273.0,0.1356591]
[1741484722788,0.00017391,86274.0,86273.0,0.1356591]
[1741484731499,0.06973221,86274.0,86273.0,0.1356591]
[1741484731700,0.06973221,86274.0,86272.0,0.20852226]
[1741484731701,0.0695591,86273.0,86272.0,0.20852226]
[1741484731896,0.1348591,86273.0,86272.0,0.20852226]
[1741484732798,0.1348591,86273.0,86268.0,0.27807611]
[1741484732799,0.6456591,86273.0,86268.0,0.27807611]
[1741484732998,0.6456591,86273.0,86266.0,0.34724462]
[1741484732999,0.4261,86273.0,86266.0,0.34724462]
[1741484733194,0.069564,86267.0,86266.0,0.34724462]
[1741484733396,0.144444,86267.0,86266.0,0.34724462]
[1741484733595,0.294444,86267.0,86266.0,0.34724462]
[1741484734104,0.358944,86267.0,86266.0,0.34724462]
[1741484736901,1.080544,86267.0,86266.0,0.34724462]
[1741484737100,0.0695648,86266.0,86265.0,0.00017391]
[1741484737305,0.1341648,86266.0,86265.0,0.00017391]
[1741484737600,0.2841648,86266.0,86265.0,0.00017391]
[1741484738007,0.1341648,86266.0,86265.0,0.00017391]
[1741484738609,0.0695761,86252.0,86251.0,0.0306]
[1741484738795,0.3608,86256.0,86250.0,0.00173883]
[1741484739005,0.0695769,86251.0,86250.0,0.00173883]
[1741484739704,0.0695833,86243.0,86242.0,0.00017391]
[1741484739906,0.4303833,86243.0,86242.0,0.00017391]
[1741484740103,0.0695833,86243.0,86242.0,0.00017391]
[1741484740703,0.1325833,86243.0,86242.0,0.00017391]
[1741484742215,0.1325833,86243.0,86242.0,0.07275801]
[1741484743417,0.1325833,86243.0,86242.0,0.00317391]
[1741484745711,0.14434664,86243.0,86242.0,0.00317391]
[1741484745909,0.14434664,86243.0,86242.0,0.07275801]
[1741484747216,0.14434664,86243.0,86242.0,0.13595801]
[1741484749523,0.11154664,86243.0,86242.0,0.13595801]
[1741484750113,0.08134664,86243.0,86242.0,0.13595801]
[1741484751016,0.14344664,86243.0,86242.0,0.13595801]
[1741484757630,0.03496251,86251.0,86242.0,0.06637391]
[1741484757833,0.07488,86250.0,86248.0,0.0695777]
[1741484758018,0.144458,86250.0,86249.0,0.1317785]
[1741484758215,0.07488,86250.0,86249.0,0.1317785]
[1741484758822,0.1444577,86250.0,86249.0,0.1317785]
[1741484759025,0.08136929,86250.0,86249.0,0.1317785]
[1741484759729,0.00017391,86251.0,86249.0,0.1327785]
[1741484760026,0.00017391,86251.0,86250.0,0.0695777]
[1741484760227,0.00017391,86251.0,86250.0,0.1320777]
[1741484761219,0.10335043,86256.0,86255.0,0.0695737]
[1741484761419,0.05345043,86256.0,86255.0,0.0695737]
[1741484761819,0.05345043,86256.0,86255.0,0.08098284]
[1741484762015,0.05345043,86256.0,86255.0,0.14698284]
[1741484762731,0.13780057,86260.0,86255.0,0.54370914]
[1741484762934,0.08790057,86260.0,86259.0,0.4303704]
[1741484763127,0.08790057,86260.0,86259.0,0.53974855]
[1741484763429,0.08790057,86260.0,86259.0,0.53972232]
[1741484763830,0.00017391,86264.0,86263.0,0.0695672]
[1741484764028,0.00017391,86264.0,86263.0,0.4303672]
[1741484764426,0.00017391,86264.0,86263.0,0.4621672]
[1741484765131,0.17248047,86272.0,86263.0,0.4621672]
[1741484765132,0.14246358,86272.0,86271.0,0.0695608]
[1741484765320,0.14246358,86272.0,86271.0,0.4303608]
[1741484765521,0.14246358,86272.0,86271.0,0.5052408]
[1741484766128,0.14246358,86272.0,86271.0,0.5354408]
[1741484767736,0.00017391,86280.0,86279.0,0.0695543]
[1741484767935,0.00017391,86280.0,86279.0,0.4303543]
[1741484768633,0.00017391,86280.0,86279.0,0.4932543]
[1741484770034,0.00017391,86280.0,86279.0,0.5047799]
[1741484770238,0.0302,86288.0,86287.0,0.0695479]
[1741484770533,0.0315,86292.0,86291.0,0.0695446]
[1741484770933,0.1010438,86292.0,86291.0,0.0695446]
[1741484771924,0.0315,86292.0,86291.0,0.0695446]
[1741484772436,0.1010438,86292.0,86291.0,0.0695446]
[1741484773033,0.1010438,86292.0,86291.0,0.0705446]
[1741484775837,0.1010438,86292.0,86291.0,0.07920212]
[1741484777631,0.1010438,86292.0,86291.0,0.07820212]
[1741484779031,0.0315,86292.0,86291.0,0.07820212]
[1741484782635,0.0315,86292.0,86291.0,0.43900212]
[1741484788944,0.0315,86292.0,86291.0,0.44000212]
[1741484789452,0.0642,86292.0,86291.0,0.47020212]
[1741484794642,0.0642,86292.0,86291.0,0.10940212]
[1741484796157,0.0642,86292.0,86291.0,0.14000212]
[1741484797350,0.06427104,86292.0,86291.0,0.14000212]
[1741484801156,0.06427104,86292.0,86291.0,0.13900212]
[1741484810256,0.13381484,86292.0,86291.0,0.00865752]
[1741484810561,0.13381484,86292.0,86290.0,0.43898417]
[1741484810562,0.0695446,86291.0,86290.0,0.43898417]
[1741484810863,0.0695446,86291.0,86290.0,0.07818417]
[1741484811065,0.1309446,86291.0,86290.0,0.07818417]
[1741484811270,0.0614,86291.0,86290.0,0.07818417]
[1741484811958,0.0614,86291.0,86290.0,0.14218417]
[1741484814871,7.104e-05,86292.0,86290.0,0.14218417]
[1741484815075,0.06324455,86300.0,86299.0,0.0695382]
[1741484815374,0.17285526,86301.0,86300.0,0.0695374]